[Event "Titled Tuesday Blitz August 08 Early 2023"]
[White "rionelG"]
[Black "Degenbaev, Aziz"]
[BlackFideId "13802640"]
[WhiteElo "2309"]
[BlackElo "2533"]
[Result "0-1"]
[Round "5"]
[TimeControl "180+1"]
[Date "2023.08.08"]
[WhiteClock "0:00:00"]
[BlackClock "0:01:14"]
[Board "152"]

1. e4 {[%clk 0:02:49]}  c5 {[%clk 0:02:57]} 2. g3 {[%clk 0:02:49]}  Nc6 {[%clk 0:02:57]} 3. Bg2 {[%clk 0:02:48]}  Nf6 {[%clk 0:02:57]} 4. Ne2 {[%clk 0:02:49]}  h5 {[%clk 0:02:53]} 5. h3 {[%clk 0:02:48]}  e5 {[%clk 0:02:44]} 6. c3 {[%clk 0:02:47]}  d6 {[%clk 0:02:43]} 7. d4 {[%clk 0:02:47]}  cxd4 {[%clk 0:02:43]} 8. cxd4 {[%clk 0:02:48]}  exd4 {[%clk 0:02:44]} 9. Nxd4 {[%clk 0:02:47]}  Nxd4 {[%clk 0:02:44]} 10. Qxd4 {[%clk 0:02:47]}  Be6 {[%clk 0:02:45]} 11. Nc3 {[%clk 0:02:46]}  Be7 {[%clk 0:02:45]} 12. O-O {[%clk 0:02:46]}  O-O {[%clk 0:02:44]} 13. Be3 {[%clk 0:02:44]}  a6 {[%clk 0:02:41]} 14. Rac1 {[%clk 0:02:08]}  Rc8 {[%clk 0:02:40]} 15. Rfd1 {[%clk 0:02:05]}  Qd7 {[%clk 0:02:36]} 16. Kh2 {[%clk 0:02:04]}  Rc4 {[%clk 0:02:35]} 17. Qd3 {[%clk 0:02:02]}  Rfc8 {[%clk 0:02:33]} 18. f4 {[%clk 0:01:52]}  Qe8 {[%clk 0:02:27]} 19. b3 {[%clk 0:01:48]}  Rb4 {[%clk 0:02:21]} 20. Na4 {[%clk 0:01:36]}  Nd7 {[%clk 0:02:10]} 21. Bd2 {[%clk 0:01:28]}  Rb5 {[%clk 0:02:05]} 22. Qe2 {[%clk 0:00:45]}  Nf6 {[%clk 0:01:46]} 23. Rxc8 {[%clk 0:00:33]}  Qxc8 {[%clk 0:01:42]} 24. Rc1 {[%clk 0:00:33]}  Qd8 {[%clk 0:01:38]} 25. Qd3 {[%clk 0:00:25]}  d5 {[%clk 0:01:32]} 26. e5 {[%clk 0:00:23]}  Ne4 {[%clk 0:01:31]} 27. Be1 {[%clk 0:00:19]}  Nc5 {[%clk 0:01:25]} 28. Nxc5 {[%clk 0:00:18]}  Rxc5 {[%clk 0:01:26]} 29. Rxc5 {[%clk 0:00:17]}  Bxc5 {[%clk 0:01:27]} 30. Bc3 {[%clk 0:00:14]}  d4 {[%clk 0:01:24]} 31. Bd2 {[%clk 0:00:14]}  Bd5 {[%clk 0:01:23]} 32. Qe2 {[%clk 0:00:14]}  Bxg2 {[%clk 0:01:23]} 33. Kxg2 {[%clk 0:00:15]}  g6 {[%clk 0:01:17]} 34. Qe4 {[%clk 0:00:14]}  Qd7 {[%clk 0:01:16]} 35. Kf3 {[%clk 0:00:13]}  Qxh3 {[%clk 0:01:16]} 36. Be1 {[%clk 0:00:00]}  Qh1+ {[%clk 0:01:14]} 0-1


[Site "https://www.chess.com"]

[Event "Titled Tuesday Blitz August 08 Early 2023"]
[White "maksimys18"]
[Black "Cagara, Paulina"]
[BlackFideId "1124870"]
[WhiteElo "2533"]
[BlackElo "2260"]
[Result "0-1"]
[Round "5"]
[TimeControl "180+1"]
[Date "2023.08.08"]
[WhiteClock "0:00:06"]
[BlackClock "0:00:06"]
[Board "153"]

1. d4 {[%clk 0:02:59]}  f5 {[%clk 0:02:59]} 2. Nf3 {[%clk 0:03:00]}  Nf6 {[%clk 0:02:58]} 3. c4 {[%clk 0:03:00]}  g6 {[%clk 0:02:58]} 4. Nc3 {[%clk 0:03:00]}  Bg7 {[%clk 0:02:53]} 5. Bg5 {[%clk 0:03:00]}  O-O {[%clk 0:02:52]} 6. e3 {[%clk 0:03:00]}  d6 {[%clk 0:02:52]} 7. Be2 {[%clk 0:02:59]}  c6 {[%clk 0:02:47]} 8. Qc2 {[%clk 0:02:57]}  Nbd7 {[%clk 0:02:45]} 9. Rd1 {[%clk 0:02:57]}  h6 {[%clk 0:02:42]} 10. Bh4 {[%clk 0:02:57]}  g5 {[%clk 0:02:42]} 11. Bg3 {[%clk 0:02:57]}  Qe8 {[%clk 0:02:38]} 12. Qxf5 {[%clk 0:02:51]}  Ne5 {[%clk 0:02:25]} 13. Qc2 {[%clk 0:02:49]}  Ng6 {[%clk 0:02:15]} 14. c5 {[%clk 0:02:40]}  d5 {[%clk 0:02:06]} 15. Ne5 {[%clk 0:02:39]}  Nxe5 {[%clk 0:02:02]} 16. Bxe5 {[%clk 0:02:38]}  Ng4 {[%clk 0:01:54]} 17. Bxg7 {[%clk 0:02:35]}  Kxg7 {[%clk 0:01:54]} 18. O-O {[%clk 0:02:22]}  e5 {[%clk 0:01:43]} 19. h3 {[%clk 0:02:21]}  Nxf2 {[%clk 0:01:26]} 20. Rxf2 {[%clk 0:02:17]}  Rxf2 {[%clk 0:01:26]} 21. Kxf2 {[%clk 0:02:17]}  exd4 {[%clk 0:01:26]} 22. exd4 {[%clk 0:02:12]}  Qf7+ {[%clk 0:01:21]} 23. Bf3 {[%clk 0:02:11]}  Bf5 {[%clk 0:01:20]} 24. Qd2 {[%clk 0:02:06]}  Rf8 {[%clk 0:01:18]} 25. Kg1 {[%clk 0:01:54]}  Bxh3 {[%clk 0:01:14]} 26. Qe3 {[%clk 0:01:40]}  Bf5 {[%clk 0:01:11]} 27. Re1 {[%clk 0:01:38]}  Qg6 {[%clk 0:01:03]} 28. Qe5+ {[%clk 0:01:34]}  Kg8 {[%clk 0:01:03]} 29. Qd6 {[%clk 0:01:29]}  Qg7 {[%clk 0:00:58]} 30. Re5 {[%clk 0:01:26]}  Bd3 {[%clk 0:00:52]} 31. Qe7 {[%clk 0:01:13]}  Rf7 {[%clk 0:00:50]} 32. Qe8+ {[%clk 0:01:13]}  Kh7 {[%clk 0:00:50]} 33. Bh5 {[%clk 0:01:01]}  Rf1+ {[%clk 0:00:29]} 34. Kh2 {[%clk 0:01:00]}  Rf8 {[%clk 0:00:28]} 35. Re7 {[%clk 0:00:40]}  Rxe8 {[%clk 0:00:19]} 36. Rxg7+ {[%clk 0:00:40]}  Kxg7 {[%clk 0:00:20]} 37. Bxe8 {[%clk 0:00:40]}  Kf6 {[%clk 0:00:19]} 38. Bd7 {[%clk 0:00:40]}  h5 {[%clk 0:00:16]} 39. Bc8 {[%clk 0:00:38]}  b6 {[%clk 0:00:16]} 40. Bd7 {[%clk 0:00:38]}  bxc5 {[%clk 0:00:15]} 41. dxc5 {[%clk 0:00:38]}  d4 {[%clk 0:00:15]} 42. Nd1 {[%clk 0:00:32]}  Be4 {[%clk 0:00:15]} 43. b4 {[%clk 0:00:30]}  a6 {[%clk 0:00:13]} 44. a4 {[%clk 0:00:30]}  g4 {[%clk 0:00:10]} 45. b5 {[%clk 0:00:29]}  axb5 {[%clk 0:00:09]} 46. axb5 {[%clk 0:00:29]}  cxb5 {[%clk 0:00:09]} 47. Bxb5 {[%clk 0:00:26]}  h4 {[%clk 0:00:08]} 48. c6 {[%clk 0:00:24]}  g3+ {[%clk 0:00:07]} 49. Kh3 {[%clk 0:00:21]}  Kg5 {[%clk 0:00:07]} 50. Nf2 {[%clk 0:00:06]}  Bf5+ {[%clk 0:00:06]} 51. Ng4 {[%clk 0:00:06]}  Bxg4# {[%clk 0:00:06]} 0-1


[Site "https://www.chess.com"]

[Event "Titled Tuesday Blitz August 08 Early 2023"]
[White "Pinero Rodriguez, Carlos Jose"]
[Black "LionKing2367890"]
[WhiteFideId "3901726"]
[WhiteElo "2526"]
[BlackElo "2214"]
[Result "0-1"]
[Round "5"]
[TimeControl "180+1"]
[Date "2023.08.08"]
[WhiteClock "0:01:08"]
[BlackClock "0:00:16"]
[Board "156"]

1. e4 {[%clk 0:03:00]}  e5 {[%clk 0:02:59]} 2. Nf3 {[%clk 0:02:59]}  Nc6 {[%clk 0:02:59]} 3. Bc4 {[%clk 0:03:00]}  Bc5 {[%clk 0:02:59]} 4. d4 {[%clk 0:03:00]}  Bxd4 {[%clk 0:02:57]} 5. Nxd4 {[%clk 0:02:51]}  Nxd4 {[%clk 0:02:57]} 6. O-O {[%clk 0:02:49]}  Nf6 {[%clk 0:02:56]} 7. f4 {[%clk 0:02:48]}  d6 {[%clk 0:02:52]} 8. fxe5 {[%clk 0:02:44]}  dxe5 {[%clk 0:02:52]} 9. Bg5 {[%clk 0:02:44]}  Qe7 {[%clk 0:02:52]} 10. Nc3 {[%clk 0:02:37]}  Qc5 {[%clk 0:02:50]} 11. Bxf7+ {[%clk 0:02:11]}  Kxf7 {[%clk 0:01:26]} 12. Qh5+ {[%clk 0:02:10]}  Ke7 {[%clk 0:01:26]} 13. Bxf6+ {[%clk 0:02:09]}  gxf6 {[%clk 0:01:26]} 14. Nd5+ {[%clk 0:02:10]}  Kd6 {[%clk 0:01:26]} 15. Rxf6+ {[%clk 0:02:03]}  Be6 {[%clk 0:01:25]} 16. Kh1 {[%clk 0:01:53]}  c6 {[%clk 0:01:19]} 17. c4 {[%clk 0:01:46]}  cxd5 {[%clk 0:00:58]} 18. cxd5 {[%clk 0:01:47]}  Rhf8 {[%clk 0:00:54]} 19. Rh6 {[%clk 0:01:46]}  Qc4 {[%clk 0:00:42]} 20. Qd1 {[%clk 0:01:39]}  Rf2 {[%clk 0:00:28]} 21. dxe6 {[%clk 0:01:27]}  Raf8 {[%clk 0:00:27]} 22. e7+ {[%clk 0:01:21]}  Kxe7 {[%clk 0:00:26]} 23. Rxh7+ {[%clk 0:01:22]}  Kd8 {[%clk 0:00:22]} 24. Rh8 {[%clk 0:01:12]}  Rxh8 {[%clk 0:00:17]} 25. Qg4 {[%clk 0:01:08]}  Rf1+ {[%clk 0:00:16]} 0-1


[Site "https://www.chess.com"]

[Event "Titled Tuesday Blitz August 08 Early 2023"]
[White "Fominykh, Maria"]
[Black "Ansh M Shah"]
[WhiteFideId "4142411"]
[BlackFideId "25033379"]
[WhiteElo "2212"]
[BlackElo "2526"]
[Result "1-0"]
[Round "5"]
[TimeControl "180+1"]
[Date "2023.08.08"]
[WhiteClock "0:00:05"]
[BlackClock "0:00:01"]
[Board "157"]

1. d4 {[%clk 0:03:00]}  Nf6 {[%clk 0:02:42]} 2. c4 {[%clk 0:03:00]}  e6 {[%clk 0:02:43]} 3. Nf3 {[%clk 0:02:59]}  c5 {[%clk 0:02:43]} 4. d5 {[%clk 0:02:59]}  exd5 {[%clk 0:02:44]} 5. cxd5 {[%clk 0:02:59]}  d6 {[%clk 0:02:45]} 6. Nc3 {[%clk 0:03:00]}  g6 {[%clk 0:02:45]} 7. e4 {[%clk 0:03:00]}  Bg7 {[%clk 0:02:45]} 8. Bd3 {[%clk 0:02:58]}  O-O {[%clk 0:02:44]} 9. O-O {[%clk 0:02:56]}  Re8 {[%clk 0:02:44]} 10. h3 {[%clk 0:02:55]}  c4 {[%clk 0:02:35]} 11. Bc2 {[%clk 0:02:52]}  b5 {[%clk 0:02:34]} 12. Nxb5 {[%clk 0:02:47]}  Nxe4 {[%clk 0:02:34]} 13. Bf4 {[%clk 0:02:14]}  a6 {[%clk 0:02:21]} 14. Nbd4 {[%clk 0:02:08]}  Bb7 {[%clk 0:02:12]} 15. Ba4 {[%clk 0:02:00]}  Re7 {[%clk 0:01:26]} 16. Bc6 {[%clk 0:01:41]}  Nxc6 {[%clk 0:01:03]} 17. dxc6 {[%clk 0:01:35]}  Bc8 {[%clk 0:01:01]} 18. Rc1 {[%clk 0:01:13]}  d5 {[%clk 0:00:55]} 19. b3 {[%clk 0:00:54]}  c3 {[%clk 0:00:52]} 20. c7 {[%clk 0:00:26]}  Rxc7 {[%clk 0:00:50]} 21. Bxc7 {[%clk 0:00:25]}  Qxc7 {[%clk 0:00:51]} 22. Ne2 {[%clk 0:00:19]}  Be6 {[%clk 0:00:42]} 23. Nfd4 {[%clk 0:00:18]}  Qb6 {[%clk 0:00:29]} 24. Qd3 {[%clk 0:00:15]}  Rc8 {[%clk 0:00:21]} 25. Kh2 {[%clk 0:00:14]}  Qd6+ {[%clk 0:00:20]} 26. g3 {[%clk 0:00:14]}  Qb6 {[%clk 0:00:18]} 27. f3 {[%clk 0:00:14]}  Nd2 {[%clk 0:00:17]} 28. Rf2 {[%clk 0:00:12]}  Bf5 {[%clk 0:00:12]} 29. Qe3 {[%clk 0:00:11]}  Bd7 {[%clk 0:00:08]} 30. Rxc3 {[%clk 0:00:11]}  Rxc3 {[%clk 0:00:07]} 31. Qxc3 {[%clk 0:00:11]}  Nb1 {[%clk 0:00:03]} 32. Qd3 {[%clk 0:00:10]}  Na3 {[%clk 0:00:03]} 33. Rf1 {[%clk 0:00:09]}  Nb5 {[%clk 0:00:03]} 34. Nxb5 {[%clk 0:00:08]}  Bxb5 {[%clk 0:00:04]} 35. Qd2 {[%clk 0:00:08]}  d4 {[%clk 0:00:04]} 36. Rg1 {[%clk 0:00:05]}  d3 {[%clk 0:00:04]} 37. Nf4 {[%clk 0:00:05]}  Bh6 {[%clk 0:00:03]} 38. Rg2 {[%clk 0:00:04]}  Qd6 {[%clk 0:00:01]} 39. h4 {[%clk 0:00:04]}  Bxf4 {[%clk 0:00:01]} 40. Qxf4 {[%clk 0:00:04]}  Qxf4 {[%clk 0:00:02]} 41. gxf4 {[%clk 0:00:05]}  Kg7 {[%clk 0:00:03]} 42. Rd2 {[%clk 0:00:05]}  Kf6 {[%clk 0:00:03]} 43. a4 {[%clk 0:00:05]}  Bc6 {[%clk 0:00:03]} 44. Rxd3 {[%clk 0:00:05]}  Bd7 {[%clk 0:00:04]} 45. Rxd7 {[%clk 0:00:05]}  Ke6 {[%clk 0:00:01]} 46. Ra7 {[%clk 0:00:05]} 1-0


[Site "https://www.chess.com"]

[Event "Titled Tuesday Blitz August 08 Early 2023"]
[White "Martin Barcelo, Carles"]
[Black "Falbo, Sandro"]
[WhiteFideId "24561444"]
[BlackFideId "810444"]
[WhiteElo "2521"]
[BlackElo "2211"]
[Result "1-0"]
[Round "5"]
[TimeControl "180+1"]
[Date "2023.08.08"]
[WhiteClock "0:00:10"]
[BlackClock "0:00:00"]
[Board "158"]

1. e4 {[%clk 0:03:00]}  c5 {[%clk 0:02:59]} 2. Nf3 {[%clk 0:02:56]}  Nc6 {[%clk 0:02:59]} 3. Nc3 {[%clk 0:02:55]}  e5 {[%clk 0:02:57]} 4. Bc4 {[%clk 0:02:55]}  Be7 {[%clk 0:02:57]} 5. O-O {[%clk 0:02:53]}  Nf6 {[%clk 0:02:56]} 6. d3 {[%clk 0:02:53]}  O-O {[%clk 0:02:56]} 7. a3 {[%clk 0:02:51]}  d6 {[%clk 0:02:56]} 8. h3 {[%clk 0:02:52]}  Be6 {[%clk 0:02:47]} 9. Be3 {[%clk 0:02:47]}  Nd4 {[%clk 0:02:43]} 10. Nd5 {[%clk 0:02:38]}  Bxd5 {[%clk 0:02:36]} 11. Bxd5 {[%clk 0:02:36]}  Nxd5 {[%clk 0:02:31]} 12. exd5 {[%clk 0:02:37]}  Nf5 {[%clk 0:02:23]} 13. Nd2 {[%clk 0:02:24]}  Bg5 {[%clk 0:02:18]} 14. Bxg5 {[%clk 0:02:22]}  Qxg5 {[%clk 0:02:18]} 15. Ne4 {[%clk 0:02:23]}  Qe7 {[%clk 0:02:15]} 16. f4 {[%clk 0:02:17]}  exf4 {[%clk 0:02:07]} 17. Rxf4 {[%clk 0:02:16]}  Nd4 {[%clk 0:02:07]} 18. c3 {[%clk 0:02:11]}  f5 {[%clk 0:01:57]} 19. cxd4 {[%clk 0:01:58]}  fxe4 {[%clk 0:01:57]} 20. Rxe4 {[%clk 0:01:59]}  Qg5 {[%clk 0:01:39]} 21. dxc5 {[%clk 0:01:55]}  Qxd5 {[%clk 0:01:39]} 22. cxd6 {[%clk 0:01:56]}  Qxd6 {[%clk 0:01:38]} 23. Qb3+ {[%clk 0:01:54]}  Kh8 {[%clk 0:01:38]} 24. Qxb7 {[%clk 0:01:28]}  Qxd3 {[%clk 0:01:30]} 25. Rae1 {[%clk 0:01:29]}  h6 {[%clk 0:01:23]} 26. Rg4 {[%clk 0:01:15]}  Rg8 {[%clk 0:01:09]} 27. Kh1 {[%clk 0:01:11]}  Rab8 {[%clk 0:01:04]} 28. Qxa7 {[%clk 0:01:07]}  Rxb2 {[%clk 0:01:03]} 29. Qe3 {[%clk 0:01:07]}  Qc2 {[%clk 0:00:49]} 30. a4 {[%clk 0:00:53]}  Ra2 {[%clk 0:00:45]} 31. Qe4 {[%clk 0:00:47]}  Qf2 {[%clk 0:00:32]} 32. Qe3 {[%clk 0:00:32]}  Qc2 {[%clk 0:00:28]} 33. Qe4 {[%clk 0:00:28]}  Qf2 {[%clk 0:00:27]} 34. Rf4 {[%clk 0:00:24]}  Qd2 {[%clk 0:00:25]} 35. Ref1 {[%clk 0:00:20]}  Rb2 {[%clk 0:00:17]} 36. Rf8 {[%clk 0:00:18]}  Rb8 {[%clk 0:00:16]} 37. Rxg8+ {[%clk 0:00:18]}  Rxg8 {[%clk 0:00:15]} 38. Qf4 {[%clk 0:00:17]}  Qa5 {[%clk 0:00:14]} 39. Rd1 {[%clk 0:00:15]}  Ra8 {[%clk 0:00:14]} 40. Rd4 {[%clk 0:00:16]}  Qe1+ {[%clk 0:00:13]} 41. Kh2 {[%clk 0:00:17]}  Qa5 {[%clk 0:00:13]} 42. Re4 {[%clk 0:00:17]}  Qd8 {[%clk 0:00:10]} 43. Re5 {[%clk 0:00:15]}  Qb8 {[%clk 0:00:10]} 44. Rf5 {[%clk 0:00:14]}  Qxf4+ {[%clk 0:00:09]} 45. Rxf4 {[%clk 0:00:15]}  Ra5 {[%clk 0:00:09]} 46. Kg3 {[%clk 0:00:15]}  Kh7 {[%clk 0:00:10]} 47. h4 {[%clk 0:00:16]}  Kg6 {[%clk 0:00:10]} 48. Kf3 {[%clk 0:00:14]}  h5 {[%clk 0:00:09]} 49. Ke3 {[%clk 0:00:14]}  Re5+ {[%clk 0:00:09]} 50. Kd3 {[%clk 0:00:14]}  Rd5+ {[%clk 0:00:09]} 51. Kc3 {[%clk 0:00:14]}  Re5 {[%clk 0:00:07]} 52. Kd4 {[%clk 0:00:11]}  Ra5 {[%clk 0:00:07]} 53. Kc3 {[%clk 0:00:09]}  Re5 {[%clk 0:00:07]} 54. Rd4 {[%clk 0:00:05]}  Re3+ {[%clk 0:00:07]} 55. Rd3 {[%clk 0:00:05]}  Re4 {[%clk 0:00:07]} 56. Rd4 {[%clk 0:00:05]}  Re3+ {[%clk 0:00:07]} 57. Kb4 {[%clk 0:00:06]}  Rg3 {[%clk 0:00:06]} 58. a5 {[%clk 0:00:06]}  Rxg2 {[%clk 0:00:07]} 59. a6 {[%clk 0:00:06]}  Ra2 {[%clk 0:00:07]} 60. Kb5 {[%clk 0:00:07]}  Rb2+ {[%clk 0:00:06]} 61. Kc6 {[%clk 0:00:07]}  Ra2 {[%clk 0:00:06]} 62. Kb7 {[%clk 0:00:07]}  Kf5 {[%clk 0:00:06]} 63. a7 {[%clk 0:00:08]}  Rxa7+ {[%clk 0:00:05]} 64. Kxa7 {[%clk 0:00:08]}  g5 {[%clk 0:00:06]} 65. Rd5+ {[%clk 0:00:08]}  Kg4 {[%clk 0:00:05]} 66. hxg5 {[%clk 0:00:09]}  h4 {[%clk 0:00:06]} 67. g6 {[%clk 0:00:09]}  h3 {[%clk 0:00:06]} 68. g7 {[%clk 0:00:09]}  h2 {[%clk 0:00:00]} 69. Rd1 {[%clk 0:00:10]} 1-0


[Site "https://www.chess.com"]

[Event "Titled Tuesday Blitz August 08 Early 2023"]
[White "Eynullayev, Atilla"]
[Black "Jodorcovsky Werjivker, Paulo"]
[WhiteFideId "13413570"]
[BlackFideId "3700305"]
[WhiteElo "2521"]
[BlackElo "2193"]
[Result "1-0"]
[Round "5"]
[TimeControl "180+1"]
[Date "2023.08.08"]
[WhiteClock "0:00:10"]
[BlackClock "0:00:12"]
[Board "159"]

1. d4 {[%clk 0:03:00]}  d5 {[%clk 0:02:59]} 2. c4 {[%clk 0:03:01]}  e6 {[%clk 0:03:00]} 3. Nc3 {[%clk 0:03:01]}  c5 {[%clk 0:03:00]} 4. cxd5 {[%clk 0:03:01]}  exd5 {[%clk 0:03:00]} 5. Nf3 {[%clk 0:03:00]}  Nc6 {[%clk 0:03:00]} 6. g3 {[%clk 0:03:00]}  Nf6 {[%clk 0:03:00]} 7. Bg2 {[%clk 0:03:00]}  cxd4 {[%clk 0:03:01]} 8. Nxd4 {[%clk 0:03:00]}  Bc5 {[%clk 0:03:01]} 9. Nb3 {[%clk 0:03:00]}  Bb6 {[%clk 0:03:02]} 10. O-O {[%clk 0:03:00]}  d4 {[%clk 0:03:02]} 11. Na4 {[%clk 0:02:59]}  O-O {[%clk 0:03:02]} 12. Bg5 {[%clk 0:02:59]}  Re8 {[%clk 0:03:02]} 13. Bxf6 {[%clk 0:02:52]}  Qxf6 {[%clk 0:03:01]} 14. Nxb6 {[%clk 0:02:53]}  axb6 {[%clk 0:03:01]} 15. Bxc6 {[%clk 0:02:54]}  bxc6 {[%clk 0:03:01]} 16. Qxd4 {[%clk 0:02:54]}  Qxd4 {[%clk 0:03:00]} 17. Nxd4 {[%clk 0:02:54]}  c5 {[%clk 0:03:01]} 18. Nb5 {[%clk 0:01:30]}  Rxe2 {[%clk 0:02:58]} 19. Rfe1 {[%clk 0:01:29]}  Rxa2 {[%clk 0:01:55]} 20. Nc3 {[%clk 0:01:23]}  Rxa1 {[%clk 0:01:53]} 21. Rxa1 {[%clk 0:01:22]}  Re8 {[%clk 0:01:54]} 22. Nd5 {[%clk 0:01:21]}  Bh3 {[%clk 0:01:44]} 23. Nxb6 {[%clk 0:01:19]}  h6 {[%clk 0:01:39]} 24. Ra8 {[%clk 0:01:19]}  Rxa8 {[%clk 0:01:38]} 25. Nxa8 {[%clk 0:01:20]}  Kf8 {[%clk 0:01:36]} 26. f3 {[%clk 0:01:21]}  Bd7 {[%clk 0:01:31]} 27. Nb6 {[%clk 0:01:20]}  Bc6 {[%clk 0:01:30]} 28. Kf2 {[%clk 0:01:20]}  Ke7 {[%clk 0:01:31]} 29. Nc4 {[%clk 0:01:21]}  Bb5 {[%clk 0:01:19]} 30. Ne5 {[%clk 0:01:12]}  f6 {[%clk 0:01:13]} 31. Ng6+ {[%clk 0:01:12]}  Kd6 {[%clk 0:01:09]} 32. Ke3 {[%clk 0:01:12]}  Be8 {[%clk 0:01:02]} 33. Nf4 {[%clk 0:01:10]}  Bc6 {[%clk 0:01:02]} 34. Nh5 {[%clk 0:01:08]}  Be8 {[%clk 0:00:53]} 35. Nxg7 {[%clk 0:01:06]}  Bg6 {[%clk 0:00:54]} 36. Kf4 {[%clk 0:01:02]}  c4 {[%clk 0:00:47]} 37. Nf5+ {[%clk 0:01:01]}  Kc5 {[%clk 0:00:46]} 38. Ne3 {[%clk 0:00:40]}  Kd4 {[%clk 0:00:40]} 39. g4 {[%clk 0:00:40]}  Bf7 {[%clk 0:00:26]} 40. h4 {[%clk 0:00:38]}  Kd3 {[%clk 0:00:27]} 41. h5 {[%clk 0:00:25]}  Kd2 {[%clk 0:00:24]} 42. Ke4 {[%clk 0:00:11]}  Kc1 {[%clk 0:00:21]} 43. Kd4 {[%clk 0:00:10]}  Kxb2 {[%clk 0:00:20]} 44. Nxc4+ {[%clk 0:00:11]}  Kc1 {[%clk 0:00:20]} 45. Nd6 {[%clk 0:00:12]}  Be6 {[%clk 0:00:19]} 46. Ke4 {[%clk 0:00:12]}  Kd2 {[%clk 0:00:18]} 47. Nf5 {[%clk 0:00:13]}  Ke2 {[%clk 0:00:18]} 48. Nxh6 {[%clk 0:00:13]}  Bc8 {[%clk 0:00:18]} 49. Nf5 {[%clk 0:00:13]}  Bb7+ {[%clk 0:00:18]} 50. Kf4 {[%clk 0:00:13]}  Kf2 {[%clk 0:00:17]} 51. h6 {[%clk 0:00:14]}  Bxf3 {[%clk 0:00:15]} 52. h7 {[%clk 0:00:14]}  Bxg4 {[%clk 0:00:15]} 53. Kxg4 {[%clk 0:00:10]}  Kg1 {[%clk 0:00:13]} 54. h8=Q {[%clk 0:00:11]}  Kg2 {[%clk 0:00:14]} 55. Qh3+ {[%clk 0:00:11]}  Kg1 {[%clk 0:00:14]} 56. Qe3+ {[%clk 0:00:09]}  Kh1 {[%clk 0:00:14]} 57. Qd2 {[%clk 0:00:09]}  Kg1 {[%clk 0:00:12]} 58. Kg3 {[%clk 0:00:10]} 1-0


[Site "https://www.chess.com"]

[Event "Titled Tuesday Blitz August 08 Early 2023"]
[White "Feliz Dotel, Dewar Bienvenido"]
[Black "Womacka, Mathias"]
[WhiteFideId "6402801"]
[BlackFideId "4611390"]
[WhiteElo "2167"]
[BlackElo "2520"]
[Result "1-0"]
[Round "5"]
[TimeControl "180+1"]
[Date "2023.08.08"]
[WhiteClock "0:00:04"]
[BlackClock "0:00:00"]
[Board "160"]

1. d4 {[%clk 0:03:00]}  Nf6 {[%clk 0:02:58]} 2. e3 {[%clk 0:02:59]}  e6 {[%clk 0:02:58]} 3. Nf3 {[%clk 0:02:59]}  c5 {[%clk 0:02:58]} 4. dxc5 {[%clk 0:02:54]}  Bxc5 {[%clk 0:02:56]} 5. a3 {[%clk 0:02:54]}  d5 {[%clk 0:02:53]} 6. c4 {[%clk 0:02:54]}  O-O {[%clk 0:02:50]} 7. cxd5 {[%clk 0:02:54]}  exd5 {[%clk 0:02:50]} 8. Bd3 {[%clk 0:02:35]}  Nc6 {[%clk 0:02:48]} 9. O-O {[%clk 0:02:34]}  Bg4 {[%clk 0:02:47]} 10. h3 {[%clk 0:02:27]}  Bh5 {[%clk 0:02:46]} 11. Be2 {[%clk 0:02:27]}  Qe7 {[%clk 0:02:43]} 12. b4 {[%clk 0:02:25]}  Bb6 {[%clk 0:02:36]} 13. Nc3 {[%clk 0:02:25]}  Rad8 {[%clk 0:02:35]} 14. Bb2 {[%clk 0:02:23]}  d4 {[%clk 0:02:18]} 15. exd4 {[%clk 0:02:14]}  Nxd4 {[%clk 0:02:04]} 16. Nxd4 {[%clk 0:02:02]}  Bxd4 {[%clk 0:02:03]} 17. Bxh5 {[%clk 0:01:07]}  Bxc3 {[%clk 0:02:01]} 18. Bxf7+ {[%clk 0:00:52]}  Qxf7 {[%clk 0:01:35]} 19. Qc2 {[%clk 0:00:52]}  Bxb2 {[%clk 0:01:32]} 20. Qxb2 {[%clk 0:00:52]}  Ne4 {[%clk 0:01:32]} 21. Qa2 {[%clk 0:00:35]}  Rd2 {[%clk 0:01:18]} 22. Qxf7+ {[%clk 0:00:35]}  Rxf7 {[%clk 0:01:18]} 23. Rae1 {[%clk 0:00:32]}  Rfxf2 {[%clk 0:01:00]} 24. Rxf2 {[%clk 0:00:28]}  Nxf2 {[%clk 0:01:00]} 25. Re7 {[%clk 0:00:26]}  b5 {[%clk 0:00:49]} 26. Rxa7 {[%clk 0:00:21]}  Ne4 {[%clk 0:00:49]} 27. Rb7 {[%clk 0:00:19]}  Nc3 {[%clk 0:00:49]} 28. Rc7 {[%clk 0:00:18]}  Ne2+ {[%clk 0:00:43]} 29. Kh2 {[%clk 0:00:18]}  Nf4 {[%clk 0:00:39]} 30. Kg3 {[%clk 0:00:17]}  Nxg2 {[%clk 0:00:36]} 31. Rc5 {[%clk 0:00:16]}  Ne1 {[%clk 0:00:34]} 32. Rxb5 {[%clk 0:00:16]}  Rd3+ {[%clk 0:00:31]} 33. Kf2 {[%clk 0:00:16]}  Nc2 {[%clk 0:00:30]} 34. a4 {[%clk 0:00:15]}  Rxh3 {[%clk 0:00:26]} 35. Rb8+ {[%clk 0:00:15]}  Kf7 {[%clk 0:00:25]} 36. b5 {[%clk 0:00:16]}  Ra3 {[%clk 0:00:22]} 37. Ra8 {[%clk 0:00:16]}  Nd4 {[%clk 0:00:18]} 38. b6 {[%clk 0:00:16]}  Nc6 {[%clk 0:00:17]} 39. a5 {[%clk 0:00:12]}  Rxa5 {[%clk 0:00:13]} 40. b7 {[%clk 0:00:12]}  Rb5 {[%clk 0:00:13]} 41. Rc8 {[%clk 0:00:12]}  Rxb7 {[%clk 0:00:12]} 42. Rxc6 {[%clk 0:00:13]}  h5 {[%clk 0:00:11]} 43. Kg3 {[%clk 0:00:13]}  Rb4 {[%clk 0:00:09]} 44. Ra6 {[%clk 0:00:11]}  Kg8 {[%clk 0:00:07]} 45. Rc6 {[%clk 0:00:10]}  Kh7 {[%clk 0:00:07]} 46. Ra6 {[%clk 0:00:10]}  g6 {[%clk 0:00:07]} 47. Rc6 {[%clk 0:00:08]}  Kh6 {[%clk 0:00:07]} 48. Rc8 {[%clk 0:00:06]}  h4+ {[%clk 0:00:07]} 49. Kh3 {[%clk 0:00:07]}  Kh5 {[%clk 0:00:07]} 50. Rh8+ {[%clk 0:00:05]}  Kg5 {[%clk 0:00:07]} 51. Rc8 {[%clk 0:00:04]}  Rb3+ {[%clk 0:00:07]} 52. Kg2 {[%clk 0:00:04]}  Kg4 {[%clk 0:00:06]} 53. Rc4+ {[%clk 0:00:04]}  Kh5 {[%clk 0:00:06]} 54. Rd4 {[%clk 0:00:04]}  g5 {[%clk 0:00:06]} 55. Rd5 {[%clk 0:00:05]}  h3+ {[%clk 0:00:04]} 56. Kh2 {[%clk 0:00:05]}  Kh4 {[%clk 0:00:05]} 57. Rd4+ {[%clk 0:00:06]}  g4 {[%clk 0:00:04]} 58. Ra4 {[%clk 0:00:06]}  Rb2+ {[%clk 0:00:02]} 59. Kg1 {[%clk 0:00:06]}  Re2 {[%clk 0:00:00]} 60. Rb4 {[%clk 0:00:04]} 1-0


[Site "https://www.chess.com"]